[Event "16th Spilimbergo Open 2018"]
[Site "Spilimbergo"]
[Date "2018.08.14"]
[Round "7.14"]
[White "Mesaros, Florian"]
[Black "Di Benedetto, Desiree"]
[Result "1-0"]
[ECO "A07"]
[WhiteElo "2422"]
[BlackElo "2295"]
[Annotator "ChessBase"]
[PlyCount "81"]
[EventDate "2018.08.10"]
[EventType "swiss"]
[EventCountry "ITA"]
[SourceTitle "playchess.com"]
[Source "ChessBase"]
[SourceQuality "1"]
[TimeControl "5400+30"]

1. Nf3 {[%emt 0:01:30]} d5 {[%emt 0:00:30]} 2. g3 {[%emt 0:00:30]} Nf6 {[%emt 0:02:30]} 3. Bg2 {[%emt 0:00:30]} Bf5 {[%emt 0:04:30]} 4. d3 {[%emt 0:03:30]} e6 {[%emt 0:02:30]} 5. O-O {[%emt 0:00:30]} Be7 {[%emt 0:00:30]} 6. Nbd2 {[%emt 0:13:30]} O-O {[%emt 0:03:30]} 7. Qe1 {[%emt 0:00:30]} h6 {[%emt 0:07:30]} 8. e4 {[%emt 0:06:30]} Bh7 {[%emt 0:01:30]} 9. Qe2 {[%emt 0:07:30]} c6 {[%emt 0:07:30]} 10. Re1 {[%emt 0:00:30]} Na6 {[%emt 0:05:30]} 11. e5 {[%emt 0:00:30]} Nd7 {[%emt 0:00:30]} 12. Nf1 {[%emt 0:00:30]} c5 {[%emt 0:03:30]} 13. h4 {[%emt 0:15:30]} Rc8 {[%emt 0:15:30]} 14. Bf4 {[%emt 0:06:30]} Nb4 {[%emt 0:10:30]} 15. Qd2 {[%emt 0:08:30]} b5 {[%emt 0:04:30]} 16. a3 {[%emt 0:07:30]} Nc6 {[%emt 0:01:30]} 17. h5 {[%emt 0:00:30]} c4 {[%emt 0:02:30]} 18. d4 {[%emt 0:04:34]} c3 {[%emt 0:04:48]} 19. bxc3 {[%emt 0:00:52]} Nb6 {[%emt 0:01:55]} 20. Ne3 {[%emt 0:06:05]} Na5 {[%emt 0:01:01]} 21. Ng4 {[%emt 0:00:13]} Kh8 {[%emt 0:04:49]} 22. Bf1 {[%emt 0:04:51]} Nac4 {[%emt 0:00:51]} 23. Qc1 {[%emt 0:00:25]} Bf5 {[%emt 0:04:15]} 24. Nfh2 {[%emt 0:03:51]} Bg5 {[%emt 0:02:40]} 25. Bd3 {[%emt 0:01:29]} Na4 {[%emt 0:02:20]} 26. Nf3 {[%emt 0:05:01]} Bxg4 {[%emt 0:01:33]} 27. Nxg5 {[%emt 0:00:02]} hxg5 {[%emt 0:00:31]} 28. Bxg5 {[%emt 0:00:01]} f6 {[%emt 0:02:38]} 29. Bh4 {[%emt 0:02:02]} Qe7 {[%emt 0:01:57]} 30. exf6 {[%emt 0:00:23]} gxf6 {[%emt 0:00:31]} 31. Qf4 {[%emt 0:00:11]} Bh3 {[%emt 0:00:31]} 32. Kh2 {[%emt 0:00:45]} e5 {[%emt 0:00:36]} 33. dxe5 {[%emt 0:00:38]} Nxe5 {[%emt 0:00:31]} 34. Rxe5 {[%emt 0:00:09]} Qg7 {[%emt 0:00:20]} 35. Rxd5 {[%emt 0:00:49]} Be6 {[%emt 0:00:21]} 36. Rd6 {[%emt 0:00:06]} Nc5 {[%emt 0:00:29]} 37. Re1 {[%emt 0:00:30]} Qf7 {[%emt 0:00:46]} 38. Rdxe6 {[%emt 0:00:34]} Nxe6 {[%emt 0:00:11]} 39. Rxe6 {[%emt 0:00:07]} Kg7 {[%emt 0:00:32]} 40. Bxf6+ {[%emt 0:00:14]} Kg8 {[%emt 0:00:14]} 41. Qg5+ {[%emt 0:00:07]} 1-0

[Event "16th Spilimbergo Open 2018"]
[Site "Spilimbergo"]
[Date "2018.08.14"]
[Round "7.16"]
[White "Montilli, Vincenzo"]
[Black "Beletic, Daniel"]
[Result "1/2-1/2"]
[ECO "A21"]
[WhiteElo "2262"]
[BlackElo "2374"]
[Annotator "ChessBase"]
[PlyCount "107"]
[EventDate "2018.08.10"]
[EventType "swiss"]
[EventCountry "ITA"]
[SourceTitle "playchess.com"]
[Source "ChessBase"]
[SourceQuality "1"]
[TimeControl "5400+30"]

1. c4 {[%emt 0:03:30]} e5 {[%emt 0:00:30]} 2. g3 {[%emt 0:00:30]} d6 {[%emt 0:00:30]} 3. Bg2 {[%emt 0:00:30]} f5 {[%emt 0:00:30]} 4. Nc3 {[%emt 0:00:30]} Nf6 {[%emt 0:00:30]} 5. e3 {[%emt 0:00:30]} Be7 {[%emt 0:00:30]} 6. Nge2 {[%emt 0:00:30]} O-O {[%emt 0:01:30]} 7. O-O {[%emt 0:00:30]} c6 {[%emt 0:00:30]} 8. d3 {[%emt 0:07:30]} Na6 {[%emt 0:05:30]} 9. Rb1 {[%emt 0:11:30]} d5 {[%emt 0:15:30]} 10. a3 {[%emt 0:05:30]} dxc4 {[%emt 0:04:30]} 11. dxc4 {[%emt 0:00:30]} Qe8 {[%emt 0:05:30]} 12. b4 {[%emt 0:05:30]} Be6 {[%emt 0:02:30]} 13. c5 {[%emt 0:10:30]} Qh5 {[%emt 0:06:30]} 14. f3 {[%emt 0:08:30]} Kh8 {[%emt 0:05:30]} 15. Qc2 {[%emt 0:06:30]} Rad8 {[%emt 0:04:30]} 16. Bb2 {[%emt 0:08:30]} Qh6 {[%emt 0:03:30]} 17. Nd1 {[%emt 0:02:30]} Nc7 {[%emt 0:19:30]} 18. Bxe5 {[%emt 0:06:19]} Rxd1 {[%emt 0:01:30]} 19. Bf4 {[%emt 0:00:25]} Rxf1+ {[%emt 0:04:21]} 20. Rxf1 {[%emt 0:00:20]} g5 {[%emt 0:01:16]} 21. Bxc7 {[%emt 0:00:08]} Nd5 {[%emt 0:00:57]} 22. Be5+ {[%emt 0:03:07]} Kg8 {[%emt 0:00:02]} 23. Qc1 {[%emt 0:02:12]} a5 {[%emt 0:00:53]} 24. Nc3 {[%emt 0:03:10]} axb4 {[%emt 0:00:35]} 25. Nxd5 {[%emt 0:00:35]} Bxd5 {[%emt 0:00:04]} 26. axb4 {[%emt 0:00:30]} Qe6 {[%emt 0:00:13]} 27. Qc3 {[%emt 0:02:02]} Re8 {[%emt 0:00:16]} 28. e4 {[%emt 0:02:38]} Ba2 {[%emt 0:02:02]} 29. Bh8 {[%emt 0:07:55]} Bf8 {[%emt 0:00:09]} 30. Rd1 {[%emt 0:00:53]} fxe4 {[%emt 0:00:15]} 31. fxe4 {[%emt 0:00:36]} Qb3 {[%emt 0:00:24]} 32. Rf1 {[%emt 0:00:49]} Qxc3 {[%emt 0:00:16]} 33. Bxc3 {[%emt 0:00:03]} Bg7 {[%emt 0:00:26]} 34. Bxg7 {[%emt 0:00:56]} Kxg7 {[%emt 0:00:01]} 35. Rd1 {[%emt 0:00:29]} Be6 {[%emt 0:00:13]} 36. e5 {[%emt 0:00:44]} Ra8 {[%emt 0:00:10]} 37. Rb1 {[%emt 0:00:34]} Ra2 {[%emt 0:00:50]} 38. b5 {[%emt 0:00:29]} Ra5 {[%emt 0:02:51]} 39. bxc6 {[%emt 0:00:10]} bxc6 {[%emt 0:00:01]} 40. Rc1 {[%emt 0:00:23]} Bd7 {[%emt 0:01:04]} 41. Be4 {[%emt 0:00:51]} h6 {[%emt 0:00:10]} 42. Kf2 {[%emt 0:00:18]} Kf7 {[%emt 0:00:18]} 43. Rd1 {[%emt 0:00:45]} Ke7 {[%emt 0:00:19]} 44. Rd6 {[%emt 0:00:24]} Rxc5 {[%emt 0:01:37]} 45. Rxh6 {[%emt 0:00:25]} Rxe5 {[%emt 0:00:11]} 46. Bxc6 {[%emt 0:00:22]} Bg4 {[%emt 0:00:59]} 47. h3 {[%emt 0:00:40]} Re2+ {[%emt 0:01:30]} 48. Kf1 {[%emt 0:00:15]} Re6 {[%emt 0:00:03]} 49. Rh7+ {[%emt 0:00:50]} Kd6 {[%emt 0:00:05]} 50. hxg4 {[%emt 0:00:27]} Kxc6 {[%emt 0:00:08]} 51. Rf7 {[%emt 0:00:36]} Kd6 {[%emt 0:01:34]} 52. Kf2 {[%emt 0:00:19]} Re5 {[%emt 0:00:35]} 53. Kf3 {[%emt 0:00:32]} Ke6 {[%emt 0:00:25]} 54. Rf8 {[%emt 0:00:12]} 1/2-1/2

[Event "16th Spilimbergo Open 2018"]
[Site "Spilimbergo"]
[Date "2018.08.14"]
[Round "8.2"]
[White "Bosiocic, Marin"]
[Black "Borisek, Jure"]
[Result "1-0"]
[ECO "C92"]
[WhiteElo "2590"]
[BlackElo "2576"]
[Annotator "ChessBase"]
[PlyCount "75"]
[EventDate "2018.08.10"]
[EventType "swiss"]
[EventCountry "ITA"]
[SourceTitle "playchess.com"]
[Source "ChessBase"]
[SourceQuality "1"]
[TimeControl "5400+30"]

1. e4 {[%emt 0:00:30]} e5 {[%emt 0:00:30]} 2. Nf3 {[%emt 0:00:00]} Nc6 {[%emt 0:00:00]} 3. Bb5 {[%emt 0:00:00]} a6 {[%emt 0:00:00]} 4. Ba4 {[%emt 0:00:00]} Nf6 {[%emt 0:00:30]} 5. O-O {[%emt 0:00:00]} Be7 {[%emt 0:00:00]} 6. Re1 {[%emt 0:00:30]} b5 {[%emt 0:00:00]} 7. Bb3 {[%emt 0:00:00]} d6 {[%emt 0:00:00]} 8. c3 {[%emt 0:00:00]} O-O {[%emt 0:00:00]} 9. h3 {[%emt 0:00:00]} Bb7 {[%emt 0:00:30]} 10. d4 {[%emt 0:00:00]} Re8 {[%emt 0:00:30]} 11. Nbd2 {[%emt 0:00:30]} exd4 {[%emt 0:00:00]} 12. cxd4 {[%emt 0:00:00]} Nd7 {[%emt 0:00:00]} 13. Nf1 {[%emt 0:00:00]} Na5 {[%emt 0:00:00]} 14. Bc2 {[%emt 0:00:30]} Bf6 {[%emt 0:00:00]} 15. Ng3 {[%emt 0:00:00]} g6 {[%emt 0:00:30]} 16. Rb1 {[%emt 0:00:00]} c5 {[%emt 0:00:00]} 17. d5 {[%emt 0:00:30]} Nc4 {[%emt 0:00:00]} 18. Nh2 {[%emt 0:00:30]} Bg7 {[%emt 0:00:30]} 19. b3 {[%emt 0:00:30]} Ncb6 {[%emt 0:00:30]} 20. Ng4 {[%emt 0:01:30]} Ne5 {[%emt 0:00:00]} 21. Ne3 {[%emt 0:01:30]} a5 {[%emt 0:01:00]} 22. f4 {[%emt 0:07:30]} Ned7 {[%emt 0:00:30]} 23. Qf3 {[%emt 0:02:30]} Bc8 {[%emt 0:05:30]} 24. Bb2 {[%emt 0:05:30]} Bxb2 {[%emt 0:02:30]} 25. Rxb2 {[%emt 0:00:30]} b4 {[%emt 0:12:30]} 26. Bd3 {[%emt 0:04:30]} a4 {[%emt 0:00:30]} 27. Bb5 {[%emt 0:02:30]} axb3 {[%emt 0:00:30]} 28. axb3 {[%emt 0:00:30]} Ra3 {[%emt 0:18:30]} 29. Bxd7 {[%emt 0:09:30]} Bxd7 {[%emt 0:01:30]} 30. f5 {[%emt 0:01:30]} Kh8 {[%emt 0:09:30]} 31. Rbb1 {[%emt 0:20:30]} Bb5 {[%emt 0:05:30]} 32. e5 {[%emt 0:07:30]} Rxe5 {[%emt 0:11:30]} 33. Ng4 {[%emt 0:00:30]} Rxe1+ {[%emt 0:00:30]} 34. Rxe1 {[%emt 0:00:30]} Ra7 {[%emt 0:00:30]} 35. fxg6 {[%emt 0:07:30]} fxg6 {[%emt 0:01:30]} 36. Ne4 {[%emt 0:04:30]} Qe7 {[%emt 0:08:30]} 37. Qg3 {[%emt 0:05:30]} Ra2 {[%emt 0:01:30]} 38. Nc3 {[%emt 0:01:31]} 1-0

[Event "16th Spilimbergo Open 2018"]
[Site "Spilimbergo"]
[Date "2018.08.14"]
[Round "8.4"]
[White "Nisipeanu, Liviu-Dieter"]
[Black "Krysa, Leandro"]
[Result "1-0"]
[ECO "C65"]
[WhiteElo "2657"]
[BlackElo "2523"]
[Annotator "ChessBase"]
[PlyCount "83"]
[EventDate "2018.08.10"]
[EventType "swiss"]
[EventCountry "ITA"]
[SourceTitle "playchess.com"]
[Source "ChessBase"]
[SourceQuality "1"]
[TimeControl "5400+30"]

1. e4 {[%emt 0:00:30]} e5 {[%emt 0:00:30]} 2. Nf3 {[%emt 0:00:00]} Nc6 {[%emt 0:00:00]} 3. Bb5 {[%emt 0:00:00]} Nf6 {[%emt 0:00:00]} 4. d3 {[%emt 0:00:30]} Bc5 {[%emt 0:00:00]} 5. Bxc6 {[%emt 0:00:00]} dxc6 {[%emt 0:00:00]} 6. Nbd2 {[%emt 0:00:00]} O-O {[%emt 0:00:30]} 7. O-O {[%emt 0:00:00]} Nd7 {[%emt 0:01:30]} 8. Nc4 {[%emt 0:00:00]} Re8 {[%emt 0:00:30]} 9. Kh1 {[%emt 0:00:30]} f6 {[%emt 0:09:30]} 10. Nh4 {[%emt 0:03:30]} Nf8 {[%emt 0:00:30]} 11. Be3 {[%emt 0:04:30]} Qe7 {[%emt 0:10:30]} 12. Bxc5 {[%emt 0:19:30]} Qxc5 {[%emt 0:00:00]} 13. Ne3 {[%emt 0:00:30]} Be6 {[%emt 0:08:00]} 14. g3 {[%emt 0:00:30]} a5 {[%emt 0:07:30]} 15. a4 {[%emt 0:04:30]} Rad8 {[%emt 0:01:30]} 16. Qe2 {[%emt 0:00:30]} Bf7 {[%emt 0:09:30]} 17. f4 {[%emt 0:05:30]} Ne6 {[%emt 0:03:30]} 18. Qf2 {[%emt 0:06:30]} Nd4 {[%emt 0:03:30]} 19. Nf3 {[%emt 0:04:30]} Bh5 {[%emt 0:18:30]} 20. g4 {[%emt 0:06:30]} Bg6 {[%emt 0:07:52]} 21. f5 {[%emt 0:02:30]} Bf7 {[%emt 0:00:22]} 22. Nxd4 {[%emt 0:04:30]} Qxd4 {[%emt 0:02:27]} 23. b3 {[%emt 0:01:30]} h6 {[%emt 0:03:19]} 24. h4 {[%emt 0:03:30]} Kf8 {[%emt 0:01:07]} 25. Kg2 {[%emt 0:02:30]} Ke7 {[%emt 0:00:54]} 26. g5 {[%emt 0:05:30]} Rh8 {[%emt 0:02:04]} 27. Rh1 {[%emt 0:03:30]} b6 {[%emt 0:00:42]} 28. Rag1 {[%emt 0:03:06]} Rdg8 {[%emt 0:02:38]} 29. g6 {[%emt 0:02:34]} Be8 {[%emt 0:00:57]} 30. Qd2 {[%emt 0:00:08]} Qb4 {[%emt 0:01:41]} 31. c3 {[%emt 0:00:31]} Qxb3 {[%emt 0:00:11]} 32. Ra1 {[%emt 0:00:38]} Rf8 {[%emt 0:01:51]} 33. Nc4 {[%emt 0:00:48]} c5 {[%emt 0:00:56]} 34. Rhb1 {[%emt 0:00:47]} Qxc4 {[%emt 0:00:10]} 35. dxc4 {[%emt 0:00:07]} Bc6 {[%emt 0:00:07]} 36. Qc2 {[%emt 0:02:25]} Rd8 {[%emt 0:01:08]} 37. Rd1 {[%emt 0:00:16]} Rxd1 {[%emt 0:03:01]} 38. Rxd1 {[%emt 0:00:05]} Rd8 {[%emt 0:01:10]} 39. Rd5 {[%emt 0:00:14]} Rd6 {[%emt 0:00:51]} 40. Qd1 {[%emt 0:02:24]} Bd7 {[%emt 0:00:31]} 41. Rxd6 {[%emt 0:00:13]} Bc6 {[%emt 0:00:35]} 42. Rd5 1-0

[Event "16th Spilimbergo Open 2018"]
[Site "Spilimbergo"]
[Date "2018.08.14"]
[Round "8.6"]
[White "Karthik Venkataraman"]
[Black "Jobava, Baadur"]
[Result "0-1"]
[ECO "A01"]
[WhiteElo "2502"]
[BlackElo "2646"]
[Annotator "ChessBase"]
[PlyCount "102"]
[EventDate "2018.08.10"]
[EventType "swiss"]
[EventCountry "ITA"]
[SourceTitle "playchess.com"]
[Source "ChessBase"]
[SourceQuality "1"]
[TimeControl "5400+30"]

1. b3 {[%emt 0:00:30]} d5 {[%emt 0:01:30]} 2. Bb2 {[%emt 0:00:30]} c5 {[%emt 0:00:30]} 3. e3 {[%emt 0:00:30]} Nc6 {[%emt 0:00:00]} 4. Bb5 {[%emt 0:00:30]} Bd7 {[%emt 0:00:00]} 5. Nf3 {[%emt 0:00:30]} f6 {[%emt 0:00:30]} 6. d4 {[%emt 0:03:30]} cxd4 {[%emt 0:00:30]} 7. exd4 {[%emt 0:00:00]} e6 {[%emt 0:00:30]} 8. O-O {[%emt 0:00:00]} Bd6 {[%emt 0:00:00]} 9. Re1 {[%emt 0:02:30]} Nge7 {[%emt 0:00:00]} 10. a3 {[%emt 0:00:30]} Rb8 {[%emt 0:01:30]} 11. Bd3 {[%emt 0:02:30]} b5 {[%emt 0:00:00]} 12. Qe2 {[%emt 0:07:30]} O-O {[%emt 0:04:00]} 13. Nbd2 {[%emt 0:03:30]} a5 {[%emt 0:05:30]} 14. Rab1 {[%emt 0:01:30]} b4 {[%emt 0:00:00]} 15. axb4 {[%emt 0:00:30]} Nxb4 {[%emt 0:00:00]} 16. c4 {[%emt 0:00:30]} Nec6 {[%emt 0:01:30]} 17. Bc3 {[%emt 0:03:30]} Na2 {[%emt 0:01:30]} 18. Ba1 {[%emt 0:00:30]} Ncb4 {[%emt 0:00:30]} 19. Nf1 {[%emt 0:01:30]} Be8 {[%emt 0:00:30]} 20. Red1 {[%emt 0:01:30]} Nxd3 {[%emt 0:00:30]} 21. Qxa2 {[%emt 0:01:30]} Bg6 {[%emt 0:00:30]} 22. Qd2 {[%emt 0:03:30]} Nxf2 {[%emt 0:14:30]} 23. Qxf2 {[%emt 0:00:30]} Bxb1 {[%emt 0:00:30]} 24. Rxb1 {[%emt 0:00:00]} dxc4 {[%emt 0:00:30]} 25. Qe2 {[%emt 0:00:00]} Qd7 {[%emt 0:09:30]} 26. Qxc4 {[%emt 0:00:30]} Rfc8 {[%emt 0:00:30]} 27. Qd3 {[%emt 0:01:30]} Qb5 {[%emt 0:00:00]} 28. Qe3 {[%emt 0:02:30]} Qf5 {[%emt 0:07:00]} 29. Re1 {[%emt 0:06:30]} Bf4 {[%emt 0:00:30]} 30. Qe2 {[%emt 0:02:30]} Rxb3 {[%emt 0:02:30]} 31. d5 {[%emt 0:05:30]} Qxd5 {[%emt 0:00:30]} 32. Rd1 {[%emt 0:00:30]} Qc5+ {[%emt 0:02:30]} 33. Kh1 {[%emt 0:01:30]} e5 {[%emt 0:00:30]} 34. Nd4 {[%emt 0:06:30]} Rb6 {[%emt 0:04:30]} 35. Nf5 {[%emt 0:00:30]} g6 {[%emt 0:00:00]} 36. Qg4 {[%emt 0:11:30]} Kf8 {[%emt 0:04:00]} 37. N5e3 {[%emt 0:03:30]} Bxe3 {[%emt 0:03:30]} 38. Nxe3 {[%emt 0:00:00]} Rcb8 {[%emt 0:00:30]} 39. Qf3 {[%emt 0:02:00]} Rd6 {[%emt 0:01:30]} 40. Rf1 {[%emt 0:04:30]} Rb3 {[%emt 0:02:30]} 41. Qa8+ {[%emt 0:01:30]} Ke7 {[%emt 0:00:30]} 42. Ng4 {[%emt 0:00:30]} Qb5 {[%emt 0:03:30]} 43. Qa7+ {[%emt 0:01:30]} Qd7 {[%emt 0:00:00]} 44. Qf2 {[%emt 0:00:30]} Qf5 {[%emt 0:01:00]} 45. Qe1 {[%emt 0:04:09]} Qxg4 {[%emt 0:02:30]} 46. Bxe5 {[%emt 0:00:05]} fxe5 {[%emt 0:00:30]} 47. Qxe5+ {[%emt 0:00:05]} Kd7 {[%emt 0:00:30]} 48. Qg7+ {[%emt 0:00:10]} Kc6 {[%emt 0:01:30]} 49. Rc1+ {[%emt 0:00:06]} Kd5 {[%emt 0:00:30]} 50. Qf7+ {[%emt 0:01:17]} Qe6 {[%emt 0:00:00]} 51. Qf1 {[%emt 0:02:53]} Qe3 {[%emt 0:01:00]} 0-1

[Event "16th Spilimbergo Open 2018"]
[Site "Spilimbergo"]
[Date "2018.08.14"]
[Round "8.7"]
[White "Barp, Alberto"]
[Black "Brunello, Sabino"]
[Result "1/2-1/2"]
[ECO "A33"]
[WhiteElo "2340"]
[BlackElo "2555"]
[Annotator "ChessBase"]
[PlyCount "90"]
[EventDate "2018.08.10"]
[EventType "swiss"]
[EventCountry "ITA"]
[SourceTitle "playchess.com"]
[Source "ChessBase"]
[SourceQuality "1"]
[TimeControl "5400+30"]

1. d4 {[%emt 0:00:30]} Nf6 {[%emt 0:00:30]} 2. c4 {[%emt 0:00:00]} e6 {[%emt 0:00:30]} 3. g3 {[%emt 0:00:00]} c5 {[%emt 0:00:00]} 4. Nf3 {[%emt 0:00:30]} cxd4 {[%emt 0:09:00]} 5. Nxd4 {[%emt 0:00:30]} Nc6 {[%emt 0:00:30]} 6. Bg2 {[%emt 0:00:00]} Bc5 {[%emt 0:00:30]} 7. Nb3 {[%emt 0:01:00]} Be7 {[%emt 0:00:00]} 8. Nc3 {[%emt 0:02:30]} O-O {[%emt 0:01:00]} 9. O-O {[%emt 0:02:30]} d6 {[%emt 0:04:30]} 10. Nd4 {[%emt 0:08:30]} Ne5 {[%emt 0:06:30]} 11. b3 {[%emt 0:02:30]} a6 {[%emt 0:00:30]} 12. Bb2 {[%emt 0:07:30]} Rb8 {[%emt 0:01:30]} 13. Qd2 {[%emt 0:04:30]} Bd7 {[%emt 0:04:30]} 14. Rfd1 {[%emt 0:09:30]} b5 {[%emt 0:01:30]} 15. cxb5 {[%emt 0:01:30]} axb5 {[%emt 0:01:30]} 16. a3 {[%emt 0:00:30]} Qb6 {[%emt 0:05:30]} 17. Na2 {[%emt 0:02:30]} Ng6 {[%emt 0:05:30]} 18. Nb4 {[%emt 0:05:30]} d5 {[%emt 0:07:30]} 19. Rac1 {[%emt 0:03:30]} Rfc8 {[%emt 0:01:30]} 20. Rxc8+ {[%emt 0:10:30]} Rxc8 {[%emt 0:00:30]} 21. Rc1 {[%emt 0:00:00]} Rxc1+ {[%emt 0:00:30]} 22. Qxc1 {[%emt 0:01:00]} Bc5 {[%emt 0:02:30]} 23. e3 {[%emt 0:01:30]} Ne7 {[%emt 0:00:30]} 24. Nf3 {[%emt 0:05:30]} Nf5 {[%emt 0:10:30]} 25. Nd3 {[%emt 0:01:30]} Bf8 {[%emt 0:00:30]} 26. Nfe5 {[%emt 0:01:30]} Be8 {[%emt 0:00:00]} 27. Bc3 {[%emt 0:04:30]} Qc7 {[%emt 0:10:00]} 28. Bd2 {[%emt 0:02:30]} Qxc1+ {[%emt 0:00:30]} 29. Bxc1 {[%emt 0:00:00]} Ne4 {[%emt 0:00:30]} 30. Nf3 {[%emt 0:05:01]} g5 {[%emt 0:10:04]} 31. Bb2 {[%emt 0:02:28]} Bg7 {[%emt 0:03:31]} 32. Bxg7 {[%emt 0:00:44]} Kxg7 {[%emt 0:00:01]} 33. g4 {[%emt 0:02:20]} Nfd6 {[%emt 0:00:46]} 34. Nd4 {[%emt 0:02:38]} Kf6 {[%emt 0:02:23]} 35. Bxe4 {[%emt 0:01:55]} Nxe4 {[%emt 0:03:23]} 36. f3 {[%emt 0:00:53]} Nc3 {[%emt 0:00:51]} 37. Kf2 {[%emt 0:02:30]} Nb1 {[%emt 0:02:34]} 38. Nc2 {[%emt 0:00:16]} Ke7 {[%emt 0:01:18]} 39. Ke2 {[%emt 0:01:10]} f6 {[%emt 0:01:14]} 40. Kd1 {[%emt 0:00:47]} h5 {[%emt 0:01:15]} 41. h3 {[%emt 0:01:28]} h4 {[%emt 0:02:34]} 42. Kc1 {[%emt 0:00:53]} Nc3 {[%emt 0:00:17]} 43. Kd2 {[%emt 0:00:21]} Nb1+ {[%emt 0:00:14]} 44. Kc1 {[%emt 0:00:06]} Nc3 {[%emt 0:00:03]} 45. Kd2 {[%emt 0:00:05]} Nb1+ {[%emt 0:01:08]} 1/2-1/2

[Event "16th Spilimbergo Open 2018"]
[Site "Spilimbergo"]
[Date "2018.08.14"]
[Round "8.8"]
[White "Rombaldoni, Denis"]
[Black "Mesaros, Florian"]
[Result "0-1"]
[ECO "A07"]
[WhiteElo "2508"]
[BlackElo "2422"]
[Annotator "ChessBase"]
[PlyCount "112"]
[EventDate "2018.08.10"]
[EventType "swiss"]
[EventCountry "ITA"]
[SourceTitle "playchess.com"]
[Source "ChessBase"]
[SourceQuality "1"]
[TimeControl "5400+30"]

1. Nf3 {[%emt 0:00:30]} d5 {[%emt 0:00:30]} 2. g3 {[%emt 0:00:00]} g6 {[%emt 0:00:00]} 3. d3 {[%emt 0:02:00]} Bg7 {[%emt 0:00:00]} 4. Nbd2 {[%emt 0:00:30]} e5 {[%emt 0:01:30]} 5. e4 {[%emt 0:00:30]} Ne7 {[%emt 0:02:30]} 6. exd5 {[%emt 0:00:30]} Nxd5 {[%emt 0:00:30]} 7. Bg2 {[%emt 0:00:30]} O-O {[%emt 0:00:00]} 8. O-O {[%emt 0:00:00]} Nc6 {[%emt 0:00:00]} 9. Re1 {[%emt 0:03:00]} Re8 {[%emt 0:06:30]} 10. c3 {[%emt 0:05:30]} a5 {[%emt 0:10:30]} 11. a4 {[%emt 0:02:30]} Bg4 {[%emt 1:13:30]} 12. h3 {[%emt 0:01:30]} Bf5 {[%emt 0:00:00]} 13. Ne4 {[%emt 0:00:30]} h6 {[%emt 0:00:00]} 14. Nh4 {[%emt 0:05:30]} Bc8 {[%emt 0:00:00]} 15. Qb3 {[%emt 0:01:30]} Nde7 {[%emt 0:00:00]} 16. Be3 {[%emt 0:06:30]} b6 {[%emt 0:00:00]} 17. d4 {[%emt 0:12:30]} Be6 {[%emt 0:00:00]} 18. Qb5 {[%emt 0:00:30]} exd4 {[%emt 0:00:00]} 19. Bxh6 {[%emt 0:06:30]} Bxh6 {[%emt 0:00:00]} 20. Nf6+ {[%emt 0:00:30]} Kg7 {[%emt 0:00:00]} 21. Nxe8+ {[%emt 0:00:30]} Qxe8 {[%emt 0:00:00]} 22. cxd4 {[%emt 0:00:30]} Qd7 {[%emt 0:00:00]} 23. f4 {[%emt 0:21:30]} Qxd4+ {[%emt 0:00:00]} 24. Kh2 {[%emt 0:00:30]} Bc4 {[%emt 0:00:00]} 25. Nf3 {[%emt 0:02:30]} Qd3 {[%emt 0:00:00]} 26. Ne5 {[%emt 0:00:30]} Bxb5 {[%emt 0:00:00]} 27. Nxd3 {[%emt 0:00:30]} Bxd3 {[%emt 0:00:00]} 28. Rxe7 {[%emt 0:00:00]} Nxe7 {[%emt 0:00:00]} 29. Bxa8 {[%emt 0:00:00]} g5 {[%emt 0:00:00]} 30. Rd1 {[%emt 0:00:30]} Bf5 {[%emt 0:00:00]} 31. g4 {[%emt 0:00:30]} Bc8 {[%emt 0:01:33]} 32. f5 {[%emt 0:00:00]} Kf6 {[%emt 0:00:41]} 33. Rc1 {[%emt 0:01:00]} c5 {[%emt 0:00:09]} 34. Rd1 {[%emt 0:07:30]} Ke5 {[%emt 0:00:10]} 35. Re1+ {[%emt 0:00:00]} Kf6 {[%emt 0:02:16]} 36. Rd1 {[%emt 0:01:00]} Ke5 {[%emt 0:00:02]} 37. Re1+ {[%emt 0:00:30]} Kd6 {[%emt 0:05:03]} 38. f6 {[%emt 0:00:30]} Ng6 {[%emt 0:00:03]} 39. Re8 {[%emt 0:00:30]} Bd7 {[%emt 0:01:23]} 40. Rb8 {[%emt 0:00:30]} Bxa4 {[%emt 0:01:22]} 41. Be4 {[%emt 0:05:18]} Nf8 {[%emt 0:00:54]} 42. Rxb6+ {[%emt 0:00:19]} Ke5 {[%emt 0:00:03]} 43. Bf5 {[%emt 0:00:22]} c4 {[%emt 0:01:37]} 44. Kg3 {[%emt 0:04:39]} Ne6 {[%emt 0:00:38]} 45. Bxe6 {[%emt 0:03:45]} fxe6 {[%emt 0:00:02]} 46. f7 {[%emt 0:00:06]} Kf6 {[%emt 0:00:04]} 47. Ra6 {[%emt 0:00:06]} Kxf7 {[%emt 0:00:45]} 48. Rxa5 {[%emt 0:01:18]} Bb3 {[%emt 0:00:07]} 49. Re5 {[%emt 0:02:27]} Bg7 {[%emt 0:00:49]} 50. Re2 {[%emt 0:00:04]} Bf6 {[%emt 0:00:30]} 51. h4 {[%emt 0:02:28]} gxh4+ {[%emt 0:00:59]} 52. Kf4 {[%emt 0:00:01]} Kg6 {[%emt 0:00:39]} 53. Rxe6 {[%emt 0:01:54]} c3 {[%emt 0:00:11]} 54. Rxf6+ {[%emt 0:00:37]} Kxf6 {[%emt 0:00:03]} 55. bxc3 {[%emt 0:00:01]} Kg6 {[%emt 0:00:08]} 56. g5 {[%emt 0:00:25]} Be6 {[%emt 0:00:08]} 0-1